bitfinex/quotes_SOLUSD_20251201
["timestamp","ask_amount","ask_price","bid_price","bid_amount"]
[1764561369029,7.86287152,127.18,127.15,0.67]
[1764561369634,8.55287152,127.18,127.15,0.67]
[1764561369940,16.49653543,127.19,127.15,5.1340793]
[1764561370151,11.34245613,127.19,127.15,5.1340793]
[1764561370334,11.34245613,127.19,127.16,0.67]
[1764561370644,13.01653543,127.19,127.16,0.67]
[1764561373642,8.55245613,127.19,127.16,0.67]
[1764561374946,8.55245613,127.19,127.16,60.73]
[1764561375153,13.01653543,127.19,127.16,60.73]
[1764561377050,8.55245613,127.19,127.16,60.73]
[1764561377353,13.01653543,127.19,127.16,60.73]
[1764561379250,4.4640793,127.19,127.17,0.67]
[1764561380035,12.32640795,127.19,127.17,0.67]
[1764561380254,7.86232865,127.19,127.17,0.67]
[1764561380455,15.80579695,127.2,127.17,0.67]
[1764561380832,13.01518222,127.21,127.17,68.59313647]
[1764561381037,7.86110292,127.21,127.17,73.05721577]
[1764561381345,16.49456397,127.22,127.18,0.67]
[1764561382361,16.49456397,127.22,127.18,8.53256846]
[1764561383156,7.86048467,127.22,127.19,0.67]
[1764561384538,8.7340793,127.23,127.19,73.0557615]
[1764561384539,0.1,127.23,127.19,73.0557615]
[1764561385056,0.1,127.23,127.2,0.69]
[1764561385246,4.5640793,127.23,127.2,60.75]
[1764561385564,5.2140793,127.23,127.2,68.61131455]
[1764561385765,4.4640793,127.22,127.2,60.75]
[1764561388361,2.85071139,127.22,127.2,60.75]
[1764561388565,8.66993732,127.23,127.2,60.75]
[1764561388767,2.85071139,127.22,127.2,60.75]
[1764561389062,11.52064871,127.23,127.2,60.75]
[1764561389451,10.81064871,127.23,127.2,60.75]
[1764561389773,11.52064871,127.23,127.2,60.75]
[1764561390262,2.85071139,127.22,127.2,60.75]
[1764561392058,10.71116239,127.22,127.2,60.75]
[1764561392260,11.42116239,127.22,127.2,60.06]
[1764561392457,11.42116239,127.22,127.2,60.74]
[1764561392659,10.71116239,127.22,127.2,60.74]
[1764561398464,7.860451,127.22,127.2,60.74]
[1764561398670,10.71116239,127.22,127.2,60.74]
[1764561399076,3.56071139,127.21,127.2,60.06]
[1764561399275,2.85071139,127.21,127.2,60.06]
[1764561399484,31.07216066,127.22,127.2,60.74]
[1764561400157,31.07216066,127.22,127.2,60.06]
[1764561400461,7.860451,127.22,127.2,60.06]
[1764561400661,7.860451,127.22,127.21,0.68]
[1764561400974,0.1,127.23,127.22,7.8603993]
[1764561401174,0.1,127.23,127.22,10.71111069]
[1764561401373,0.1,127.23,127.22,11.39111069]
[1764561402054,0.1,127.23,127.22,71.45111069]
[1764561402258,0.1,127.23,127.22,68.6003993]
[1764561402471,0.1,127.23,127.22,71.45111069]
[1764561402980,0.1,127.23,127.22,68.6003993]
[1764561403166,0.1,127.23,127.22,71.45111069]
[1764561403680,0.1,127.24,127.23,59.96]
[1764561403981,0.1,127.24,127.23,170.67071139]
[1764561404176,0.1,127.24,127.23,167.82]
[1764561404573,0.1,127.24,127.23,3.48]
[1764561404884,0.1,127.24,127.23,4.16]
[1764561407578,0.1,127.24,127.23,65.66]
[1764561408385,0.1,127.24,127.23,68.51071139]
[1764561408686,0.1,127.24,127.23,76.37049288]
[1764561409988,0.1,127.24,127.23,79.51824027]
[1764561410570,0.1,127.24,127.23,64.98]
[1764561410765,0.1,127.24,127.23,65.66]
[1764561412192,0.1,127.24,127.23,73.51978149]
[1764561412598,0.1,127.24,127.23,76.37049288]
[1764561414182,0.1,127.24,127.23,68.51071139]
[1764561415078,0.1,127.24,127.23,65.66]
[1764561415397,0.1,127.24,127.23,73.51978149]
[1764561415990,0.1,127.24,127.23,65.66]
[1764561417294,0.1,127.24,127.23,73.51978149]
[1764561418702,3.65071139,127.24,127.23,61.5]
[1764561419186,3.65071139,127.24,127.21,61.5]
[1764561419502,2.85071139,127.22,127.19,0.67]
[1764561420106,11.41119394,127.22,127.19,0.67]
[1764561420484,7.95964741,127.24,127.19,11.38296471]
[1764561420689,8.65964741,127.24,127.2,7.00071139]
[1764561420914,8.65964741,127.24,127.19,7.86225332]
[1764561420915,2.85071139,127.21,127.18,65.65]
[1764561421110,0.7,127.23,127.19,0.67]
[1764561421111,2.85071139,127.22,127.19,0.67]
[1764561421733,11.41162694,127.22,127.19,0.67]
[1764561421911,8.56091555,127.22,127.19,0.67]
[1764561422536,10.71162694,127.22,127.18,64.98]
[1764561422710,11.41162694,127.22,127.19,0.67]
[1764561423538,8.56091555,127.22,127.19,0.67]
[1764561423728,11.41162694,127.22,127.19,0.67]
[1764561424734,2.85071139,127.2,127.18,3.48]
[1764561425040,2.85071139,127.19,127.16,61.5]
[1764561425338,2.85071139,127.19,127.16,0.67]
[1764561425524,3.55071139,127.19,127.15,72.88485644]
[1764561425712,11.41330836,127.19,127.16,0.67]
[1764561426340,8.56259697,127.19,127.16,0.67]
[1764561426523,11.41330836,127.19,127.16,0.67]
[1764561427139,8.56259697,127.19,127.16,0.67]
[1764561427437,0.7,127.18,127.15,72.21485644]
[1764561427729,3.55071139,127.19,127.16,0.67]
[1764561428737,0.7,127.18,127.15,72.88485644]
[1764561429218,11.41328358,127.19,127.16,0.67]
[1764561429417,19.65342329,127.21,127.16,0.67]
[1764561429418,10.71261131,127.2,127.16,3.52071139]
[1764561429739,11.41261131,127.2,127.16,0.67]
[1764561429923,0.7,127.19,127.16,0.67]
[1764561430635,11.41319905,127.19,127.15,70.03414505]
[1764561430812,11.41319905,127.19,127.15,69.36414505]
[1764561431010,11.41319905,127.19,127.16,0.67]
[1764561432116,8.56248766,127.19,127.16,0.67]
[1764561434117,0.7,127.19,127.16,8.533881]
[1764561434317,0.7,127.19,127.17,0.67]
[1764561434541,0.7,127.19,127.16,65.02071139]
[1764561434841,0.7,127.19,127.16,62.17]
[1764561435138,0.7,127.19,127.16,70.03410285]
[1764561436048,3.55071139,127.19,127.16,70.03410285]
[1764561436748,11.41296724,127.19,127.16,70.03410285]
[1764561436940,3.55071139,127.18,127.16,61.5]
[1764561437141,11.41296724,127.19,127.16,62.17]
[1764561438037,8.56225585,127.19,127.16,62.17]
[1764561438239,11.41296724,127.19,127.16,62.17]
[1764561443046,10.71296724,127.19,127.16,62.17]
[1764561443358,8.5630542,127.18,127.16,62.17]
[1764561443532,7.8630542,127.18,127.16,62.17]
[1764561449147,8.5630542,127.18,127.16,62.17]
[1764561449342,7.8630542,127.18,127.16,62.17]
[1764561453541,4.45682753,127.19,127.16,61.5]
[1764561453850,5.11682753,127.19,127.16,62.19]
[1764561454159,12.31969905,127.18,127.16,62.19]
[1764561454849,4.45682753,127.17,127.16,61.5]
[1764561455053,8.52101721,127.21,127.17,0.69]
[1764561455238,8.51978149,127.23,127.18,4.45682753]
[1764561455553,12.97660902,127.23,127.19,4.45682753]
[1764561455739,12.97660902,127.23,127.19,5.14682753]
[1764561455941,12.97660902,127.23,127.2,0.69]
[1764561456245,7.85978149,127.23,127.2,0.69]
[1764561456837,7.85978149,127.23,127.2,5.14682753]
[1764561457049,0.66,127.23,127.2,5.14682753]
[1764561457334,8.51991889,127.23,127.2,5.14682753]
[1764561458052,7.95920688,127.24,127.21,5.14682753]
[1764561458239,0.1,127.24,127.22,4.45682753]
[1764561458445,0.1,127.24,127.23,4.45682753]
[1764561458633,0.1,127.24,127.23,5.14682753]
[1764561458837,0.1,127.24,127.23,0.69]
[1764561459270,5.21682753,127.24,127.21,20.40695228]
[1764561459457,0.66,127.23,127.2,61.5]
[1764561459769,0.66,127.23,127.2,62.19]
[1764561459972,0.66,127.23,127.2,61.5]
[1764561460272,7.86007693,127.23,127.21,0.69]
[1764561460638,8.52007693,127.23,127.21,0.69]
[1764561461635,8.52007693,127.23,127.2,61.5]
[1764561461836,8.52007693,127.23,127.2,62.19]
[1764561462668,8.52007693,127.23,127.21,0.69]
[1764561462850,7.86007693,127.23,127.21,0.69]
[1764561463941,7.86007693,127.23,127.21,62.19]
[1764561469276,7.95931344,127.24,127.22,0.69]
[1764561469465,0.1,127.24,127.22,0.69]
[1764561469861,0.1,127.24,127.22,62.19]
[1764561470380,0.1,127.24,127.23,0.69]
[1764561470783,0.1,127.24,127.22,62.19]
[1764561471652,0.1,127.24,127.23,0.69]
[1764561475786,0.1,127.24,127.23,62.19]
[1764561478488,0.1,127.24,127.23,19.62435641]
[1764561480086,0.1,127.24,127.23,81.12435641]
[1764561480287,0.1,127.24,127.23,89.93430133]
[1764561480998,0.1,127.24,127.23,97.43322041]
[1764561481520,0.1,127.24,127.23,194.42027947]
[1764561481797,0.1,127.24,127.23,193.63430133]
[1764561482582,0.1,127.25,127.24,8.80994492]
[1764561482786,0.1,127.26,127.24,184.40951635]
[1764561482987,0.1,127.26,127.25,29.38251906]
[1764561483306,0.1,127.26,127.25,32.5290284]
[1764561483888,0.1,127.26,127.25,40.38757456]
[1764561485108,0.1,127.26,127.25,40.28386442]
[1764561485614,0.1,127.26,127.25,49.19751948]
[1764561485910,0.1,127.26,127.25,44.74069195]
[1764561487710,0.69,127.31,127.28,61.2]
[1764561487900,0.69,127.31,127.28,69.11682753]
[1764561488207,0.69,127.31,127.28,69.81682753]
[1764561488385,0.69,127.31,127.28,77.77156019]
[1764561489211,0.79,127.29,127.28,61.2]
[1764561489802,0.1,127.29,127.28,61.2]
[1764561490998,0.79,127.29,127.28,61.2]
[1764561491389,5.24682753,127.29,127.28,61.2]
[1764561491591,5.24682753,127.29,127.24,61.2]
[1764561491886,4.45682753,127.27,127.24,61.2]
[1764561492301,8.54792865,127.26,127.24,61.2]
[1764561492811,0.69,127.26,127.24,61.2]
[1764561495888,7.85742441,127.27,127.24,61.2]
[1764561496094,0.69,127.26,127.24,61.2]
[1764561497293,13.00479096,127.26,127.24,61.2]
[1764561497704,0.69,127.25,127.24,61.2]
[1764561498817,8.54854616,127.25,127.24,61.2]
[1764561504624,7.85854616,127.25,127.24,61.2]
[1764561505717,8.51854616,127.25,127.24,61.2]
[1764561506404,12.97537369,127.25,127.22,61.88]
[1764561506605,12.31537369,127.25,127.22,61.88]
[1764561506805,12.31537369,127.25,127.23,0.68]
[1764561507234,12.97537369,127.25,127.23,0.68]
[1764561508122,8.51854616,127.25,127.23,0.68]
[1764561508315,7.85854616,127.25,127.23,0.68]
[1764561509111,8.51854616,127.25,127.23,0.68]
[1764561511325,8.51854616,127.25,127.22,61.2]
[1764561511326,3.50919137,127.24,127.22,61.2]
[1764561511712,0.66,127.24,127.22,61.2]
[1764561512106,8.51959715,127.24,127.22,61.2]
[1764561513227,7.85978149,127.23,127.22,61.2]
[1764561513833,8.51978149,127.23,127.22,61.2]
[1764561514125,7.85978149,127.23,127.22,61.2]
[1764561514334,3.50919137,127.24,127.22,61.2]
[1764561514525,11.36847994,127.24,127.22,61.2]
[1764561515120,8.51928857,127.24,127.22,61.2]
[1764561516032,8.51928857,127.24,127.22,61.88]
[1764561516331,8.51928857,127.24,127.22,61.2]
[1764561516332,3.50919137,127.23,127.22,61.2]
[1764561518224,11.36897286,127.23,127.22,61.2]
[1764561519733,0.66,127.23,127.22,61.2]
[1764561520122,8.51916378,127.24,127.22,61.2]
[1764561520322,0.66,127.23,127.22,61.2]
[1764561521631,8.51978149,127.23,127.22,61.2]
[1764561522933,7.85978149,127.23,127.22,61.2]
[1764561524423,10.70897286,127.23,127.22,61.2]
[1764561525343,7.85978149,127.23,127.22,61.2]
[1764561527340,8.51978149,127.23,127.22,61.2]
[1764561527650,7.85978149,127.23,127.22,61.2]
[1764561528556,8.51978149,127.23,127.22,61.2]
[1764561528924,7.85978149,127.23,127.22,61.2]
[1764561529532,8.51978149,127.23,127.22,61.2]
[1764561529738,7.85978149,127.23,127.22,61.2]
[1764561531037,11.36897286,127.23,127.22,61.2]
[1764561531760,10.70897286,127.23,127.22,61.2]
[1764561532432,14.82837367,127.24,127.22,61.2]
[1764561532634,11.36837367,127.24,127.22,61.2]
[1764561532841,14.82837367,127.24,127.22,61.2]
[1764561533054,0.66,127.23,127.22,61.2]
[1764561533643,14.82837367,127.24,127.22,61.2]
[1764561534147,11.36837367,127.24,127.22,61.2]
[1764561535452,14.82588527,127.28,127.23,0.68]
[1764561535631,34.46762002,127.28,127.24,2.84919137]
[1764561535831,0.7,127.27,127.24,2.84919137]
[1764561536048,0.7,127.27,127.25,0.68]
[1764561536254,0.7,127.27,127.24,3.52919137]
[1764561536549,0.7,127.27,127.24,0.68]
[1764561536763,7.85792865,127.26,127.24,0.68]
[1764561537141,8.80994492,127.24,127.19,61.88]
[1764561537344,6.30919137,127.23,127.19,61.88]
[1764561537551,7.00919137,127.23,127.2,0.68]
[1764561537751,2.84919137,127.22,127.2,0.68]
[1764561538360,4.16,127.23,127.2,0.68]
[1764561538658,0.7,127.22,127.18,64.72919137]
[1764561538835,11.40974482,127.22,127.19,0.68]
[1764561539037,2.84919137,127.21,127.19,0.68]
[1764561540745,10.7103611,127.21,127.19,0.68]
[1764561542057,7.86116973,127.21,127.19,0.68]
[1764561543254,10.7103611,127.21,127.18,61.2]
[1764561543563,10.7103611,127.21,127.19,0.68]
[1764561544266,10.7103611,127.21,127.19,61.88]
[1764561546371,23.10995932,127.23,127.16,0.68]
[1764561546372,7.86225332,127.19,127.16,0.68]
[1764561546562,2.84919137,127.17,127.15,61.2]
[1764561546957,3.54919137,127.17,127.15,61.2]
[1764561547351,2.84919137,127.17,127.15,61.88]
[1764561547552,3.54919137,127.17,127.15,61.2]
[1764561548673,7.86410821,127.16,127.15,61.2]
[1764561548975,7.86410821,127.16,127.14,0.68]
[1764561551173,10.7129607,127.17,127.14,0.68]
[1764561551375,2.84919137,127.16,127.14,0.68]
[1764561552282,10.71358304,127.16,127.14,0.68]
[1764561553678,7.86439167,127.16,127.14,0.68]
[1764561554270,7.86439167,127.16,127.14,3.52919137]
[1764561556071,7.86439167,127.16,127.14,64.72919137]
[1764561556886,0.7,127.16,127.14,64.72919137]
[1764561557078,0.7,127.16,127.14,61.2]
[1764561559482,7.8647267,127.15,127.14,61.2]
[1764561559963,7.8647267,127.15,127.14,61.88]
[1764561560164,7.8647267,127.15,127.14,61.2]
[1764561562886,7.8647267,127.15,127.14,61.88]
[1764561563068,27.52268698,127.17,127.14,61.88]
[1764561563272,30.98268698,127.17,127.15,0.68]
[1764561563466,30.98268698,127.17,127.15,3.52919137]
[1764561563669,11.32396244,127.17,127.15,3.52919137]
[1764561563881,12.02396244,127.17,127.15,3.52919137]
[1764561564977,8.56396244,127.17,127.15,3.52919137]
[1764561565377,8.56396244,127.17,127.15,2.84919137]
[1764561567189,8.56396244,127.17,127.15,3.56919137]
[1764561567893,8.56396244,127.17,127.15,64.76919137]
[1764561568190,7.86396244,127.17,127.15,64.76919137]
[1764561568692,8.52396244,127.17,127.15,64.76919137]
[1764561568873,8.52396244,127.17,127.15,64.04919137]
[1764561569273,8.52396244,127.17,127.15,64.76919137]
[1764561569995,7.86396244,127.17,127.15,64.76919137]
[1764561570496,20.31183102,127.22,127.16,8.63475843]
[1764561570697,20.31183102,127.22,127.19,4.45475843]
[1764561570867,0.66,127.21,127.19,4.45475843]
[1764561571392,11.98101721,127.21,127.19,4.45475843]
[1764561572479,3.46,127.21,127.2,5.17475843]
[1764561572677,3.46,127.21,127.2,4.45475843]
[1764561573288,3.46,127.21,127.19,5.17475843]
[1764561573497,11.32111235,127.21,127.19,5.17475843]
[1764561573994,11.32111235,127.21,127.19,66.37475843]
[1764561575377,0.66,127.2,127.19,61.2]
[1764561575580,11.32111235,127.21,127.19,61.2]
[1764561575781,11.98111235,127.21,127.19,61.2]
[1764561578101,9.46994492,127.2,127.14,16.308864]
[1764561578307,8.80994492,127.17,127.12,4.45475843]
[1764561578478,3.46,127.17,127.14,5.17475843]
[1764561578881,4.12,127.17,127.14,5.17475843]
[1764561579290,4.12,127.17,127.14,0.72]
[1764561579788,0.66,127.16,127.12,5.17475843]
[1764561580006,7.8647267,127.15,127.12,5.17475843]
[1764561580205,7.8647267,127.15,127.12,4.45475843]
[1764561580704,8.5247267,127.15,127.12,5.17475843]
[1764561581681,7.8647267,127.15,127.12,4.45475843]
[1764561581884,7.8647267,127.15,127.13,0.72]
[1764561582121,7.86410821,127.16,127.11,7.86687611]
[1764561582411,21.78881156,127.16,127.12,0.72]
[1764561582590,0.66,127.15,127.12,5.17475843]
[1764561583299,8.52529551,127.15,127.12,5.17475843]
[1764561583503,7.86529551,127.15,127.13,0.72]
[1764561583690,7.86529551,127.15,127.14,4.45475843]
[1764561584613,7.86529551,127.15,127.13,5.17475843]
[1764561587219,7.86529551,127.15,127.11,61.2]
[1764561587517,13.26470335,127.13,127.1,0.2]
[1764561587726,16.72470335,127.13,127.1,0.2]
[1764561587928,7.86658275,127.12,127.1,0.2]
[1764561588290,9.46994492,127.11,127.1,0.2]
[1764561590109,7.86720163,127.11,127.1,0.2]
[1764561590311,11.98720163,127.11,127.1,0.2]
[1764561592198,25.25190498,127.11,127.1,0.2]
[1764561596815,20.79714655,127.11,127.1,0.2]
[1764561597115,7.8664957,127.13,127.1,5.32475843]
[1764561597302,11.34554679,127.14,127.11,4.45475843]
[1764561597621,11.34554679,127.14,127.1,4.65475843]
[1764561597830,9.47994492,127.13,127.1,5.32475843]
[1764561598134,3.48,127.12,127.1,5.32475843]
[1764561598914,7.86720163,127.11,127.1,5.32475843]
[1764561599235,7.86720163,127.11,127.1,0.87]
[1764561600012,17.34714655,127.11,127.1,0.2]
[1764561600206,21.80190498,127.11,127.1,0.2]
[1764561601142,17.34714655,127.11,127.1,0.2]
[1764561601345,20.82714655,127.11,127.1,0.2]
[1764561601811,21.80190498,127.11,127.1,0.2]
[1764561602011,20.15714655,127.11,127.1,0.2]
[1764561602241,20.82714655,127.11,127.1,0.2]
[1764561603932,25.28190498,127.11,127.1,0.2]
[1764561606933,43.44990907,127.11,127.09,0.2]
[1764561607135,8.80994492,127.08,127.05,0.2]
[1764561607323,8.80994492,127.06,127.05,0.2]
[1764561608316,21.80500084,127.06,127.05,0.2]
[1764561609550,38.11386484,127.06,127.05,1e-08]
[1764561610937,29.57356735,127.04,127.03,1e-08]
[1764561611333,33.72356735,127.04,127.03,1e-08]
[1764561611652,41.59510387,127.04,127.03,1e-08]
[1764561611828,37.44510387,127.04,127.03,1e-08]
[1764561612033,36.47034544,127.04,127.03,1e-08]
[1764561612228,20.16148144,127.04,127.03,1e-08]
[1764561612452,0.67,127.07,127.03,0.67000001]
[1764561612629,0.67,127.07,127.04,4.45475843]
[1764561612630,11.34967813,127.07,127.04,4.45475843]
[1764561612834,11.34967813,127.07,127.03,5.12475844]
[1764561613245,7.86967813,127.07,127.04,5.12475843]
[1764561613440,11.34967813,127.07,127.04,5.12475843]
[1764561613761,11.34967813,127.07,127.05,0.67]
[1764561615050,3.48,127.07,127.05,0.67]
[1764561615253,7.86926712,127.08,127.05,0.67]
[1764561615462,19.66998544,127.1,127.07,4.45475843]
[1764561615673,11.34782061,127.1,127.07,4.45475843]
[1764561615958,3.48,127.1,127.08,5.12475843]
[1764561616369,8.60475843,127.1,127.06,0.67]
[1764561616568,4.45475843,127.07,127.03,1e-08]
[1764561616766,8.80994492,127.05,127.03,1e-08]
[1764561616947,13.26470335,127.05,127.03,1e-08]
[1764561617266,13.26470335,127.05,127.03,0.70000001]
[1764561617474,11.35153652,127.04,127.03,1e-08]
[1764561618072,11.35153652,127.04,127.03,0.70000001]
[1764561618568,11.35153652,127.04,127.03,1e-08]
[1764561619453,15.80629495,127.04,127.03,1e-08]
[1764561620177,11.35153652,127.04,127.03,1e-08]
[1764561620355,11.35153652,127.04,127.03,0.70000001]
[1764561620770,11.35153652,127.04,127.03,1e-08]
[1764561621356,25.32623987,127.04,127.03,1e-08]
[1764561621560,41.63510387,127.04,127.03,1e-08]
[1764561623974,38.15510387,127.04,127.03,1e-08]
[1764561624163,41.63510387,127.04,127.03,1e-08]
[1764561628077,37.19034544,127.04,127.03,1e-08]
[1764561628291,41.64510387,127.04,127.03,1e-08]
[1764561629083,16.68148144,127.04,127.03,0.66000001]
[1764561629486,7.87153652,127.04,127.03,0.66000001]
[1764561630072,3.48,127.05,127.03,0.66000001]
[1764561630276,4.45475843,127.09,127.04,4.45475843]
[1764561630579,3.48,127.09,127.05,2.85643182]
[1764561630779,3.48,127.09,127.06,0.66]
[1764561631188,11.66637674,127.08,127.06,0.66]
[1764561631390,3.48,127.07,127.06,0.66]
[1764561631711,6.33643182,127.07,127.03,1e-08]
[1764561631997,11.66637674,127.06,127.03,0.69000001]
[1764561632199,3.48,127.05,127.03,0.69000001]
[1764561632773,3.48,127.05,127.03,3.54643183]
[1764561633302,3.48,127.05,127.04,0.69]
[1764561634474,11.35091696,127.05,127.04,0.69]
[1764561636694,3.48,127.05,127.04,0.69]
[1764561636894,20.16046313,127.06,127.04,0.69]
[1764561639996,23.01689495,127.06,127.04,0.69]
[1764561642400,20.16046313,127.06,127.04,0.69]
[1764561645202,7.87051821,127.06,127.04,0.69]
[1764561645500,14.20695003,127.06,127.04,0.69]
[1764561645905,11.35051821,127.06,127.04,0.69]
[1764561646803,14.20695003,127.06,127.04,0.69]
[1764561647408,14.92695003,127.06,127.03,1e-08]
[1764561647599,11.66637674,127.04,127.03,1e-08]
[1764561647806,15.86637674,127.04,127.03,1e-08]
[1764561648192,13.00994492,127.04,127.03,1e-08]
[1764561648398,15.86637674,127.04,127.03,1e-08]
[1764561649005,23.73791326,127.04,127.03,1e-08]
[1764561655008,19.53791326,127.04,127.03,0.69000001]
[1764561655317,11.35153652,127.04,127.03,0.69000001]
[1764561657629,14.20796834,127.04,127.03,0.69000001]
[1764561658125,10.72796834,127.04,127.03,0.69000001]
[1764561658317,14.20796834,127.04,127.03,0.69000001]
[1764561659125,23.71791326,127.04,127.03,1e-08]
[1764561659814,23.01791326,127.04,127.03,1e-08]
[1764561660716,40.02677726,127.04,127.03,1e-08]
[1764561665330,40.02677726,127.04,127.01,0.2]
[1764561665331,25.11880892,127.02,127.01,0.2]
[1764561665633,42.88096802,127.02,127.01,0.2]
[1764561665819,43.58096802,127.02,127.01,0.2]
[1764561666613,51.45374396,127.02,127.01,0.2]
[1764561666832,8.80994492,127.01,126.99,0.2]
[1764561667017,6.33643182,127.0,126.99,0.2]
[1764561667219,7.03643182,127.0,126.99,0.2]
[1764561668546,14.91044756,127.0,126.99,0.2]
[1764561669142,23.72039248,127.0,126.99,0.2]
[1764561669342,20.24039248,127.0,126.99,0.2]
[1764561669540,23.72039248,127.0,126.99,0.2]
[1764561670548,8.80994492,126.99,126.98,0.2]
[1764561670750,12.36637674,126.99,126.98,0.2]
[1764561672027,20.24101253,126.99,126.98,0.2]
[1764561676129,7.87413691,127.0,126.98,0.89]
[1764561676444,11.35413691,127.0,126.98,0.89]
[1764561676649,20.16408183,127.0,126.99,0.69]
[1764561677340,43.41555302,127.0,126.98,0.2]
[1764561677536,2.85643182,126.99,126.98,0.2]
[1764561678047,10.73106761,126.99,126.98,0.2]
[1764561679046,8.80994492,127.01,126.98,62.39]
[1764561679245,3.48,127.02,126.99,2.85643182]
[1764561679556,3.48,127.02,127.0,0.69]
[1764561679753,3.48,127.02,127.0,62.19]
[1764561680136,14.20920776,127.02,127.0,62.19]
[1764561680337,2.85643182,127.01,127.0,61.5]
[1764561680650,2.85643182,127.01,127.0,62.19]
[1764561680827,25.11880892,127.0,126.98,0.2]
[1764561681031,12.28994492,126.99,126.98,0.2]
[1764561681252,12.99994492,126.99,126.98,0.2]
[1764561681854,15.85637674,126.99,126.98,1e-08]
[1764561682060,23.73101253,126.99,126.98,1e-08]
[1764561682441,25.34818261,126.99,126.98,1e-08]
[1764561682642,28.82818261,126.99,126.98,1e-08]
[1764561682960,25.34818261,126.99,126.98,1e-08]
[1764561683165,28.82818261,126.99,126.98,1e-08]
[1764561683830,20.87458071,126.99,126.98,1e-08]
[1764561684035,28.82818261,126.99,126.98,1e-08]
[1764561685058,28.82818261,126.99,126.97,1e-08]
[1764561685059,25.82880892,126.98,126.97,1e-08]
[1764561685351,33.78241082,126.98,126.96,1e-08]
[1764561685554,20.95354682,126.97,126.96,1e-08]
[1764561686154,16.76354682,126.95,126.94,0.2]
[1764561686353,20.24354682,126.95,126.94,0.2]
[1764561686659,20.90354682,126.95,126.94,0.2]
[1764561687035,28.78066379,126.95,126.94,1e-08]
[1764561688446,28.78066379,126.95,126.93,1e-08]
[1764561688447,9.46994492,126.94,126.93,1e-08]
[1764561688642,8.80994492,126.92,126.91,0.1]
[1764561688847,20.24354682,126.92,126.91,0.1]
[1764561689148,20.1689238,126.92,126.91,0.1]
[1764561689739,7.87897888,126.92,126.91,0.8]
[1764561690141,12.28994492,126.93,126.91,0.8]
[1764561690358,20.16835441,126.93,126.91,0.8]
[1764561690667,3.48,126.93,126.91,0.8]
[1764561691259,7.9536019,126.96,126.92,24.2624659]
[1764561691260,3.5,126.96,126.92,24.2624659]
[1764561691594,3.5,126.96,126.93,7.9536019]
[1764561691881,12.30994492,126.98,126.94,8.6436019]
[1764561692080,3.5,126.98,126.95,7.9536019]
[1764561692263,11.3741092,127.0,126.96,7.9536019]
[1764561692577,11.3741092,127.0,126.96,13.13991378]
[1764561692882,11.3741092,127.0,126.97,0.69]
[1764561693084,3.5,127.0,126.97,13.13991378]
[1764561693377,11.37224398,127.03,126.98,12.44991378]
[1764561693579,11.37224398,127.03,126.98,13.13991378]
[1764561693778,11.37224398,127.03,126.99,0.69]
[1764561694159,31.05263443,127.03,126.99,0.69]
[1764561694772,3.5,127.03,127.0,12.44991378]
[1764561694980,8.80994492,127.04,126.99,0.69]
[1764561694981,3.5,127.04,126.99,13.13991378]
[1764561695176,11.37169634,127.04,126.99,13.13991378]
[1764561695479,12.44991378,127.01,126.97,0.69]
[1764561695695,8.80994492,126.97,126.9,0.2]
[1764561695866,12.44991378,126.95,126.93,0.69]
[1764561696483,15.94991378,126.96,126.93,0.69]
[1764561697158,7.87711697,126.95,126.93,0.69]
[1764561697670,20.32703075,126.95,126.93,0.69]
[1764561697961,12.44991378,126.94,126.91,62.29]
[1764561698165,40.01982318,126.95,126.92,0.69]